bitfinex/quotes_BTCUSD_20220115
["timestamp","ask_amount","ask_price","bid_price","bid_amount"]
[1642262606177,0.25094751,43332.0,43329.0,0.00015471]
[1642262606772,0.157723,43333.0,43329.0,0.00015471]
[1642262606972,0.26238006,43331.0,43329.0,0.00015471]
[1642262607173,0.26238006,43331.0,43329.0,0.00099442]
[1642262607423,0.8514584,43331.0,43329.0,0.00099442]
[1642262607618,0.9514584,43331.0,43330.0,0.00013752]
[1642262607819,1.3260964,43331.0,43330.0,0.00013752]
[1642262608421,0.73701806,43331.0,43330.0,0.00013752]
[1642262609222,0.474638,43331.0,43330.0,0.00013752]
[1642262609623,0.68725806,43332.0,43330.0,0.55013752]
[1642262610021,0.68725806,43332.0,43331.0,0.00012033]
[1642262610421,0.91725806,43332.0,43331.0,0.00012033]
[1642262611067,0.23,43332.0,43331.0,0.00012033]
[1642262612069,0.23,43332.0,43331.0,0.65250082]
[1642262612268,0.68725806,43336.0,43332.0,2.6]
[1642262612467,0.68725806,43336.0,43333.0,0.374638]
[1642262612667,0.68725806,43336.0,43335.0,0.00124889]
[1642262612868,0.68725806,43336.0,43335.0,2.32588689]
[1642262613067,0.68725806,43336.0,43335.0,0.78465873]
[1642262613271,0.00082183,43339.0,43335.0,0.78465873]
[1642262613567,0.00082183,43339.0,43336.0,0.2463746]
[1642262613767,0.00082183,43339.0,43337.0,0.374638]
[1642262614170,6.876e-05,43342.0,43337.0,0.374638]
[1642262614369,0.00082187,43340.0,43337.0,0.27906366]
[1642262614569,0.00082187,43340.0,43338.0,0.374638]
[1642262615418,6.876e-05,43342.0,43338.0,0.370638]
[1642262615617,6.876e-05,43342.0,43337.0,0.27906366]
[1642262615618,0.00082188,43341.0,43337.0,0.27906366]
[1642262615818,0.00082188,43341.0,43338.0,0.375049]
[1642262616620,6.876e-05,43342.0,43338.0,0.375049]
[1642262616818,0.00089066,43342.0,43337.0,0.27906366]
[1642262617820,6.876e-05,43342.0,43337.0,0.27906366]
[1642262618021,0.00089066,43342.0,43337.0,0.27906366]
[1642262618669,0.00089066,43342.0,43337.0,0.22906366]
[1642262619074,6.876e-05,43342.0,43337.0,0.22906366]
[1642262619374,0.00089066,43342.0,43336.0,0.2463746]
[1642262619571,0.24844934,43342.0,43335.0,0.00124889]
[1642262619770,0.00089066,43342.0,43335.0,0.00124889]
[1642262619972,0.68814872,43342.0,43335.0,0.00124889]
[1642262620172,0.78732682,43342.0,43335.0,0.00124889]
[1642262620373,0.00082189,43341.0,43335.0,0.00124889]
[1642262620876,0.68807995,43341.0,43335.0,0.00124889]
[1642262621073,0.78807995,43341.0,43335.0,0.00124889]
[1642262621474,0.78725806,43341.0,43335.0,0.00124889]
[1642262621673,0.00082188,43340.0,43335.0,0.00124889]
[1642262622074,0.1,43347.0,43336.0,0.375049]
[1642262622329,0.0461,43351.0,43345.0,0.00121915]
[1642262622526,0.0461,43351.0,43337.0,0.30977871]
[1642262622527,0.68830357,43342.0,43341.0,2.0463]
[1642262622726,8.595e-05,43347.0,43346.0,0.00126828]
[1642262623125,0.29122905,43352.0,43346.0,0.60648033]
[1642262623325,0.20052,43354.0,43346.0,0.60648033]
[1642262623725,0.2758879,43353.0,43347.0,0.375049]
[1642262623926,0.00010314,43348.0,43346.0,1.06461063]
[1642262624124,0.00010314,43348.0,43347.0,0.375049]
[1642262624325,0.29991604,43352.0,43347.0,0.375049]
[1642262624727,0.29991604,43352.0,43341.0,0.0463]
[1642262624926,0.26095358,43351.0,43341.0,0.0463]
[1642262625626,0.86153272,43349.0,43343.0,0.24433304]
[1642262625827,0.599,43349.0,43343.0,0.24433304]
[1642262626467,0.00077114,43348.0,43343.0,0.24433304]
[1642262626667,0.00077114,43348.0,43344.0,0.375049]
[1642262626867,0.00077114,43348.0,43343.0,0.24433304]
[1642262626868,8.595e-05,43347.0,43343.0,0.24433304]
[1642262627266,0.00077114,43348.0,43343.0,0.24433304]
[1642262627267,6.876e-05,43346.0,43343.0,0.24433304]
[1642262627667,6.876e-05,43346.0,43341.0,0.33593035]
[1642262627876,0.59616189,43349.0,43341.0,0.33593035]
[1642262628066,0.59616189,43349.0,43342.0,6.876e-05]
[1642262628669,0.59616189,43349.0,43345.0,0.00122953]
[1642262629068,0.59616189,43349.0,43346.0,0.057669]
[1642262629368,0.59616189,43349.0,43347.0,0.26769185]
[1642262629574,0.59616189,43349.0,43348.0,0.29425879]
[1642262630025,0.59616189,43349.0,43348.0,0.66930779]
[1642262630224,0.59616189,43349.0,43348.0,0.66495779]
[1642262630426,0.59616189,43349.0,43348.0,1.36495779]
[1642262630627,0.59248989,43349.0,43348.0,1.36495779]
[1642262630825,0.59248989,43349.0,43348.0,0.76495779]
[1642262631027,0.82248989,43349.0,43348.0,0.76495779]
[1642262631227,0.82248989,43349.0,43348.0,0.66495779]
[1642262636167,0.00072477,43351.0,43349.0,2.5]
[1642262636372,4.77e-06,43351.0,43350.0,4.6740905]
[1642262636567,4.77e-06,43351.0,43350.0,4.7740905]
[1642262636967,0.601,43359.0,43350.0,4.7740905]
[1642262637169,0.601,43359.0,43358.0,2.79546446]
[1642262637433,0.88713939,43368.0,43359.0,2.25]
[1642262637626,0.88713939,43368.0,43367.0,0.00127877]
[1642262637829,0.94248539,43373.0,43367.0,0.00127877]
[1642262638226,0.00044695,43372.0,43367.0,0.00127877]
[1642262638425,0.93793234,43373.0,43367.0,0.00127877]
[1642262638627,0.93793234,43373.0,43368.0,6.876e-05]
[1642262638829,0.375049,43372.0,43368.0,6.876e-05]
[1642262639030,0.05079295,43373.0,43368.0,6.876e-05]
[1642262639230,0.00469295,43373.0,43368.0,6.876e-05]
[1642262639433,0.33225646,43375.0,43368.0,6.876e-05]
[1642262639631,0.00071864,43373.0,43368.0,6.876e-05]
[1642262640332,0.00071864,43373.0,43372.0,0.32883814]
[1642262640530,0.88813939,43376.0,43372.0,0.00121223]
[1642262640731,0.00071866,43375.0,43372.0,0.00121223]
[1642262641379,0.00071866,43375.0,43368.0,6.876e-05]
[1642262641578,0.2818768,43373.0,43368.0,2.58024405]
[1642262641777,0.2818768,43373.0,43369.0,0.375049]
[1642262641981,0.28259544,43373.0,43369.0,0.375049]
[1642262642378,0.28259544,43373.0,43366.0,0.00010314]
[1642262642581,0.51259544,43373.0,43366.0,0.00010314]
[1642262642886,0.373049,43372.0,43366.0,0.00010314]
[1642262643279,0.373049,43372.0,43363.0,0.00015471]
[1642262643280,0.37376764,43372.0,43363.0,0.00015471]
[1642262643480,0.10071864,43372.0,43363.0,0.00015471]
[1642262643680,0.24211676,43364.0,43363.0,0.00015471]
[1642262643882,0.24211676,43364.0,43363.0,0.374914]
[1642262644280,0.24211676,43364.0,43363.0,0.37506871]
[1642262644682,0.00071858,43366.0,43363.0,0.37506871]
[1642262644927,0.00071858,43366.0,43364.0,0.2465025]
[1642262645127,0.00071858,43366.0,43365.0,0.374914]
[1642262645327,0.00071858,43366.0,43365.0,0.37503433]
[1642262645532,0.5276457,43373.0,43365.0,0.37503433]
[1642262645728,0.27076231,43367.0,43365.0,0.00012033]
[1642262646027,0.27076231,43367.0,43366.0,0.374914]
[1642262646230,0.27076231,43367.0,43365.0,0.00012033]
[1642262646428,0.27076231,43367.0,43366.0,0.00010314]
[1642262646628,0.27076231,43367.0,43362.0,0.0001719]
[1642262646828,0.27076231,43367.0,43360.0,0.00020628]
[1642262647030,0.30958768,43363.0,43360.0,0.00020628]
[1642262647628,0.27076231,43367.0,43361.0,0.374914]
[1642262647831,0.27076231,43367.0,43359.0,0.00022347]
[1642262648033,0.00071856,43364.0,43362.0,0.0001719]
[1642262648229,0.00071856,43364.0,43359.0,0.00022347]
[1642262648430,0.00071856,43364.0,43360.0,0.374914]
[1642262648873,0.00071856,43364.0,43361.0,0.00018909]
[1642262649072,0.59292893,43367.0,43362.0,0.374914]
[1642262649270,0.00071857,43364.0,43361.0,0.00018909]
[1642262649571,0.00071857,43364.0,43362.0,0.374914]
[1642262649971,0.00071857,43364.0,43363.0,0.35015471]
[1642262650174,0.27076231,43367.0,43363.0,0.37506871]
[1642262650373,0.00071858,43366.0,43363.0,0.00015471]
[1642262650579,0.26130846,43366.0,43364.0,0.00013752]
[1642262650773,0.26130846,43366.0,43358.0,0.26103731]
[1642262650774,0.26130846,43366.0,43359.0,0.00022347]
[1642262650974,0.26130846,43366.0,43360.0,0.374914]
[1642262651375,0.26058988,43366.0,43361.0,0.00018909]
[1642262651575,0.00071857,43365.0,43361.0,0.00018909]
[1642262651775,0.00071857,43365.0,43362.0,0.374914]
[1642262652176,0.00071857,43365.0,43363.0,0.00015471]
[1642262652625,0.27076231,43367.0,43363.0,0.00015471]
[1642262652926,0.00071858,43366.0,43359.0,0.00022347]
[1642262653133,0.00071858,43366.0,43360.0,0.374914]
[1642262653527,0.00071858,43366.0,43361.0,0.00018909]
[1642262654127,0.00071858,43366.0,43359.0,0.00022347]
[1642262654327,0.27199026,43360.0,43359.0,0.00022347]
[1642262654527,0.27199026,43360.0,43359.0,0.37513747]
[1642262658473,0.00071854,43362.0,43359.0,0.37513747]
[1642262658674,0.41328508,43372.0,43359.0,0.37513747]
[1642262658873,0.00071854,43362.0,43360.0,0.00020628]
[1642262659073,0.00071854,43362.0,43361.0,0.374914]
[1642262659475,0.00071854,43362.0,43361.0,0.37510309]
[1642262659927,0.56712583,43363.0,43361.0,0.37510309]
[1642262660129,0.32142913,43363.0,43361.0,0.37510309]
[1642262660327,0.32142913,43363.0,43362.0,0.3501719]
[1642262660529,0.32142913,43363.0,43362.0,0.3750859]
[1642262661127,0.66053323,43363.0,43362.0,0.3750859]
[1642262661329,0.32142913,43363.0,43362.0,0.3750859]
[1642262662529,0.00071857,43365.0,43363.0,0.31327296]
[1642262662729,0.00071857,43365.0,43362.0,0.0001719]
[1642262662929,0.00071857,43365.0,43364.0,0.00013752]
[1642262663129,0.00071857,43365.0,43358.0,0.00024066]
[1642262663435,0.27006641,43366.0,43359.0,0.374914]
[1642262663669,0.00071856,43364.0,43359.0,0.374914]
[1642262663869,0.00071856,43364.0,43360.0,0.00020628]
[1642262664071,0.00071856,43364.0,43361.0,0.374914]
[1642262664372,0.00071856,43364.0,43362.0,0.29502605]
[1642262664571,0.27006641,43366.0,43363.0,0.374914]
[1642262664772,0.00071857,43365.0,43363.0,0.00015471]
[1642262665072,0.00071857,43365.0,43358.0,0.00024066]
[1642262665271,0.00071857,43365.0,43358.0,0.00014066]
[1642262665572,0.30330741,43362.0,43358.0,0.25894687]
[1642262665771,0.30330741,43362.0,43359.0,0.374914]
[1642262665976,0.00050807,43362.0,43359.0,0.37503747]
[1642262666173,0.00050807,43362.0,43360.0,0.00010628]
[1642262666372,0.00050807,43362.0,43361.0,0.724914]
[1642262666875,0.00050807,43362.0,43361.0,1.12500309]
[1642262667073,0.27006641,43366.0,43361.0,1.12500309]
[1642262667327,0.00050808,43364.0,43361.0,1.12500309]
[1642262667526,0.00050808,43364.0,43362.0,7.19e-05]
[1642262667728,0.00050808,43364.0,43363.0,0.974914]
[1642262668135,0.00050808,43364.0,43363.0,1.074914]
[1642262668331,0.286,43376.0,43368.0,0.00120719]
[1642262668332,0.10419993,43376.0,43368.0,0.00120719]
[1642262668540,0.001,43376.0,43368.0,0.00120719]
[1642262668729,0.00015157,43375.0,43368.0,0.00120719]
[1642262669130,0.28321579,43372.0,43368.0,0.00120719]
[1642262669531,0.28321579,43372.0,43368.0,0.2577288]
[1642262669532,8.281e-05,43371.0,43368.0,0.2577288]
[1642262669932,6.562e-05,43370.0,43369.0,1.024914]
[1642262670334,6.562e-05,43370.0,43369.0,0.374914]
[1642262670534,6.562e-05,43370.0,43362.0,7.19e-05]
[1642262670733,6.562e-05,43370.0,43363.0,0.374914]
[1642262670934,6.562e-05,43370.0,43362.0,7.19e-05]
[1642262671378,6.562e-05,43370.0,43365.0,0.28011602]
[1642262671678,6.562e-05,43370.0,43362.0,7.19e-05]
[1642262672079,0.00063657,43370.0,43362.0,7.19e-05]
[1642262672678,0.00063657,43370.0,43365.0,0.2994273]
[1642262672877,0.00063657,43370.0,43362.0,2.50106075]
[1642262673077,6.562e-05,43370.0,43363.0,0.64846171]
[1642262673277,0.00063657,43370.0,43363.0,0.374914]
[1642262674278,6.562e-05,43370.0,43363.0,0.374914]
[1642262674477,0.00054968,43369.0,43363.0,0.374914]
[1642262674922,0.00054968,43369.0,43365.0,0.32415371]
[1642262675124,0.00054968,43369.0,43366.0,0.374914]
[1642262675524,6.562e-05,43370.0,43366.0,0.374914]
[1642262675724,0.0006153,43370.0,43366.0,0.374914]
[1642262675927,0.0006153,43370.0,43368.0,0.00126874]
[1642262676129,0.0006153,43370.0,43369.0,2.22617166]
[1642262676629,6.562e-05,43370.0,43369.0,2.22617166]
[1642262679773,0.00055576,43372.0,43371.0,3.82]
[1642262679974,0.002,43385.0,43375.0,0.374914]
[1642262680175,0.002,43385.0,43382.0,0.0012088]
[1642262680373,0.002,43385.0,43382.0,2.6761228]
[1642262680576,0.88713939,43390.0,43386.0,0.374914]
[1642262680776,0.88713939,43390.0,43389.0,1.724914]
[1642262680777,0.88652516,43390.0,43389.0,1.724914]
[1642262680974,0.001,43394.0,43390.0,2.77614965]
[1642262680975,0.8887601,43394.0,43390.0,2.77614965]
[1642262681174,0.8887601,43394.0,43391.0,0.0463]
[1642262681372,0.8887601,43394.0,43392.0,0.6412869]
[1642262681574,0.8787601,43394.0,43392.0,0.2663729]
[1642262681975,0.00034745,43395.0,43392.0,0.2663729]
[1642262682176,0.00034745,43395.0,43393.0,0.374914]
[1642262682427,0.00041256,43394.0,43393.0,0.374914]
[1642262682627,0.00041256,43394.0,43393.0,0.37619517]
[1642262682829,0.00041256,43394.0,43393.0,1.55510232]
[1642262683129,0.00041256,43394.0,43393.0,1.27619517]
[1642262683727,0.00041256,43394.0,43393.0,2.07619517]
[1642262683929,0.00041256,43394.0,43393.0,1.27619517]
[1642262685128,0.00041256,43394.0,43393.0,1.37619517]
[1642262685531,0.00041256,43394.0,43393.0,0.37619517]
[1642262685732,0.00041256,43394.0,43393.0,0.374914]
[1642262686980,0.00041256,43394.0,43393.0,0.324914]
[1642262687376,0.00041256,43394.0,43386.0,0.2932]
[1642262687579,0.00041256,43394.0,43378.0,0.59226411]
[1642262687780,0.04669537,43393.0,43378.0,0.59226411]
[1642262687977,0.11019878,43393.0,43380.0,0.31444925]
[1642262688176,0.00037818,43392.0,43380.0,0.31444925]
[1642262688377,0.26509696,43383.0,43380.0,0.31444925]
[1642262688577,0.26509696,43383.0,43381.0,0.374786]
[1642262688777,0.00020628,43382.0,43381.0,0.374786]
[1642262689179,0.00020628,43382.0,43378.0,0.59226411]
[1642262689378,0.00020628,43382.0,43379.0,0.374786]
[1642262689581,0.00018909,43381.0,43379.0,0.374786]
[1642262690028,0.0001719,43380.0,43379.0,0.374786]
[1642262690625,0.0001719,43380.0,43368.0,0.69095903]
[1642262690823,0.0001719,43380.0,43371.0,0.374786]
[1642262691025,0.00015471,43379.0,43371.0,0.374786]
[1642262691227,0.00055574,43378.0,43371.0,0.374786]
[1642262691427,0.33598214,43374.0,43373.0,0.295189]
[1642262691625,0.33598214,43374.0,43373.0,0.669975]
[1642262691824,0.3360509,43374.0,43373.0,0.374786]
[1642262694575,0.3360509,43374.0,43372.0,0.28821184]
[1642262694780,0.3360509,43374.0,43369.0,0.00123287]
[1642262694975,0.3360509,43374.0,43370.0,0.374786]
[1642262695175,0.3310509,43374.0,43370.0,0.374786]
[1642262696178,0.33160051,43374.0,43370.0,0.374786]
[1642262696380,0.32960051,43374.0,43370.0,0.374786]
[1642262696880,0.32960051,43374.0,43369.0,0.00123287]
[1642262697081,0.3290509,43374.0,43362.0,2.50106075]
[1642262697342,0.3290509,43374.0,43362.0,7.19e-05]
[1642262697343,0.0443,43373.0,43362.0,7.19e-05]
[1642262697531,0.2875813,43372.0,43363.0,0.00012033]
[1642262697730,0.25842513,43366.0,43362.0,0.29324308]
[1642262697931,0.25842513,43366.0,43362.0,0.00013752]
[1642262698131,0.27426419,43365.0,43363.0,0.00012033]
[1642262698332,0.27426419,43365.0,43362.0,0.00013752]
[1642262698731,0.27426419,43365.0,43355.0,0.41755154]
[1642262698732,0.27426419,43365.0,43356.0,0.00024066]
[1642262698931,0.27426419,43365.0,43358.0,0.29295585]
[1642262699132,0.27426419,43365.0,43356.0,0.00024066]
[1642262699332,0.25914493,43364.0,43359.0,0.00018909]
[1642262699532,0.25914493,43364.0,43356.0,0.00024066]
[1642262699736,0.25914493,43364.0,43358.0,0.00020628]
[1642262699938,0.31926837,43358.0,43356.0,0.00024066]
[1642262700134,0.31926837,43358.0,43357.0,0.374786]
[1642262700533,0.31926837,43358.0,43357.0,0.00022347]
[1642262701577,0.31926837,43358.0,43357.0,0.37500947]
[1642262701779,0.31926837,43358.0,43357.0,0.374786]
[1642262701977,0.31926837,43358.0,43355.0,0.00025785]
[1642262702178,0.31926837,43358.0,43356.0,0.374786]
[1642262702377,0.31926837,43358.0,43355.0,0.28508573]
[1642262702583,0.31926837,43358.0,43355.0,0.00025785]
[1642262702780,0.26757007,43357.0,43356.0,0.00024066]
[1642262702978,0.26757007,43357.0,43355.0,0.00025785]
[1642262703380,0.31926837,43358.0,43354.0,0.00087229]
[1642262703604,0.5796705,43358.0,43355.0,0.00025785]
[1642262703783,0.41654226,43357.0,43355.0,0.00025785]
[1642262703980,0.69748598,43356.0,43355.0,0.00025785]
[1642262704180,0.74378598,43356.0,43355.0,0.00025785]
[1642262704581,0.74378598,43356.0,43353.0,0.00087229]
[1642262704818,0.74378598,43356.0,43354.0,0.00027505]
[1642262705124,0.27045116,43355.0,43354.0,0.00027505]
[1642262705319,0.64523716,43355.0,43354.0,0.00027505]
[1642262705920,0.64523716,43355.0,43352.0,0.00087235]
[1642262706121,0.374786,43354.0,43353.0,0.00029224]
[1642262706321,0.65658158,43354.0,43353.0,0.00029224]
[1642262707121,0.65658158,43354.0,43351.0,0.00077422]
[1642262707324,0.75658158,43354.0,43352.0,0.00030943]
[1642262707523,1.15118567,43353.0,43352.0,0.00030943]
[1642262707727,1.57227167,43353.0,43352.0,0.00030943]
[1642262707926,1.67355533,43353.0,43352.0,0.00030943]
[1642262708323,0.00127911,43351.0,43350.0,0.00077423]
[1642262708584,0.00127911,43351.0,43348.0,7.423e-05]
[1642262708585,0.5,43350.0,43348.0,7.423e-05]
[1642262708786,0.421086,43349.0,43348.0,7.423e-05]
[1642262709184,0.521086,43349.0,43348.0,7.423e-05]
[1642262710388,0.80502987,43349.0,43348.0,7.423e-05]
[1642262710688,0.421086,43349.0,43348.0,0.3202221]
[1642262711488,0.421086,43349.0,43348.0,7.423e-05]
[1642262711885,0.68672212,43349.0,43348.0,7.423e-05]
[1642262712928,0.78672212,43349.0,43348.0,7.423e-05]
[1642262714928,0.421086,43349.0,43348.0,7.423e-05]
[1642262716898,0.68777792,43349.0,43348.0,7.423e-05]
[1642262718102,0.78777792,43349.0,43348.0,7.423e-05]
[1642262719498,0.68777792,43349.0,43348.0,7.423e-05]
[1642262719699,0.78777792,43349.0,43348.0,7.423e-05]
[1642262719931,0.68777792,43349.0,43348.0,7.423e-05]
[1642262720131,0.521086,43349.0,43348.0,7.423e-05]
[1642262720736,0.67925174,43349.0,43348.0,7.423e-05]
[1642262720934,0.421086,43349.0,43348.0,7.423e-05]
[1642262721132,0.374786,43349.0,43348.0,0.3146808]
[1642262721531,0.24513678,43351.0,43348.0,7.423e-05]
[1642262721733,0.374786,43350.0,43348.0,7.423e-05]
[1642262721931,0.374786,43350.0,43349.0,0.000361]
[1642262722131,0.63412725,43350.0,43349.0,0.000361]
[1642262722331,0.63412725,43350.0,43348.0,3.523e-05]
[1642262722533,0.27752177,43349.0,43348.0,3.523e-05]
[1642262722731,0.65230777,43349.0,43348.0,3.523e-05]
[1642262723134,0.75230777,43349.0,43348.0,3.523e-05]
[1642262725079,0.65230777,43349.0,43348.0,3.523e-05]
[1642262725480,0.75230777,43349.0,43348.0,3.523e-05]
[1642262727525,0.374786,43348.0,43346.0,1.566e-05]
[1642262728127,0.474786,43348.0,43346.0,1.566e-05]
[1642262728325,0.474786,43348.0,43336.0,0.28310263]
[1642262728532,0.33340865,43343.0,43341.0,0.24975078]
[1642262729628,0.33340865,43343.0,43337.0,0.00020628]
[1642262730028,0.2452464,43347.0,43337.0,0.00020628]
[1642262730230,0.3076,43353.0,43337.0,0.00020628]
[1642262730442,0.997,43355.0,43341.0,0.00129166]
[1642262730831,0.00081296,43354.0,43344.0,0.00093403]
[1642262731093,0.00081296,43354.0,43346.0,0.00129353]
[1642262731285,6.876e-05,43353.0,43348.0,0.34120296]
[1642262731483,6.876e-05,43353.0,43349.0,0.73976172]
[1642262732484,6.876e-05,43353.0,43352.0,0.00129555]
[1642262732685,6.876e-05,43353.0,43352.0,2.32608155]
[1642262734932,0.23006876,43353.0,43352.0,2.32608155]
[1642262735133,0.23006876,43353.0,43352.0,1.07608155]
[1642262735335,0.23006876,43353.0,43352.0,0.37608155]
[1642262735831,0.23006876,43353.0,43352.0,0.6644539]
[1642262736236,0.23006876,43353.0,43352.0,0.37608155]
[1642262737034,0.23006876,43353.0,43352.0,0.37191155]
[1642262737232,0.23006876,43353.0,43352.0,1.17191155]
[1642262737632,0.22954876,43353.0,43352.0,0.37191155]
[1642262749680,0.22454876,43353.0,43352.0,0.82191155]
[1642262749928,0.22454876,43353.0,43352.0,0.37191155]
[1642262750531,0.22454876,43353.0,43350.0,0.0012159]
[1642262750729,0.22454876,43353.0,43351.0,0.374978]
[1642262753435,0.22454876,43353.0,43348.0,0.34120296]
[1642262753679,0.22454876,43353.0,43349.0,0.374978]
[1642262753880,0.22454876,43353.0,43349.0,0.37504676]
[1642262754081,0.22454876,43353.0,43349.0,0.65537585]
[1642262754380,0.22454876,43353.0,43349.0,0.37504676]
[1642262755981,0.22454876,43353.0,43350.0,0.33261235]
[1642262756182,0.22454876,43353.0,43351.0,0.374978]
[1642262759533,0.22454876,43353.0,43351.0,0.64999357]
[1642262760135,0.22454876,43353.0,43352.0,2.87438134]
[1642262760335,0.22454876,43353.0,43352.0,3.29686234]
[1642262760535,0.22454876,43353.0,43352.0,3.39686234]
[1642262761381,0.22454876,43353.0,43352.0,3.122481]
[1642262762585,0.22126856,43353.0,43352.0,3.022481]
[1642262763183,0.22126856,43353.0,43352.0,4.242481]
[1642262764083,1.15e-05,43355.0,43354.0,0.374978]
[1642262764289,0.28691882,43373.0,43354.0,0.58014693]
[1642262764486,0.0461,43375.0,43358.0,0.1]
[1642262764683,1.2897,43382.0,43373.0,0.00123705]
[1642262765135,0.23,43375.0,43373.0,0.00123705]
[1642262765331,0.23,43375.0,43374.0,2.8306222]
[1642262765530,0.23,43375.0,43374.0,3.2056002]
[1642262766033,0.23,43375.0,43374.0,3.2531364]
[1642262766231,0.0001,43375.0,43374.0,4.4731364]
[1642262766632,0.009244,43383.0,43374.0,4.4731364]
[1642262766833,0.009244,43383.0,43377.0,0.3108487]
[1642262767030,0.00049852,43382.0,43378.0,0.421278]
[1642262767231,0.00049852,43382.0,43379.0,0.0463]
[1642262767432,0.00048133,43381.0,43380.0,0.374978]
[1642262767635,0.00048133,43381.0,43380.0,0.421278]
[1642262768031,0.2949558,43381.0,43380.0,0.421278]
[1642262768889,1.08278225,43381.0,43368.0,0.92348269]
[1642262769089,1.18403051,43381.0,43361.0,1.0506]
[1642262769289,0.00046414,43380.0,43362.0,0.676778]
[1642262769687,1.22984918,43381.0,43366.0,0.30881382]
[1642262769688,0.60397668,43370.0,43366.0,0.30881382]
[1642262769886,0.00044695,43379.0,43367.0,0.374978]
[1642262770087,0.00027505,43369.0,43366.0,0.30881382]
[1642262770290,0.44786433,43377.0,43367.0,0.374978]
[1642262770485,0.44786433,43377.0,43366.0,0.30881382]
[1642262770486,0.00025786,43368.0,43366.0,0.30881382]
[1642262770686,0.00061937,43375.0,43367.0,0.374978]
[1642262770889,0.00024067,43367.0,43366.0,0.30881382]
[1642262771187,0.00024067,43367.0,43366.0,0.68379182]
[1642262771787,0.00024067,43367.0,43366.0,1.33379182]
[1642262772834,0.00024067,43367.0,43366.0,1.69917112]
[1642262774433,0.00024067,43367.0,43366.0,0.68379182]
[1642262775635,0.00024067,43367.0,43366.0,1.38379182]
[1642262776078,0.00024067,43367.0,43366.0,1.81910866]
[1642262777180,0.00024067,43367.0,43366.0,1.11910866]
[1642262777379,0.2543167,43376.0,43367.0,0.374978]
[1642262777580,0.35645084,43380.0,43367.0,0.374978]
[1642262777778,0.00012033,43374.0,43367.0,0.374978]
[1642262778179,0.00010314,43373.0,43367.0,0.374978]
[1642262778378,0.33022884,43372.0,43367.0,0.374978]
[1642262778579,0.33031479,43372.0,43367.0,0.374978]
[1642262778779,6.876e-05,43371.0,43367.0,0.374978]
[1642262780833,6.876e-05,43371.0,43367.0,0.43262]
[1642262781231,0.00078631,43371.0,43368.0,0.27729027]
[1642262781437,0.00078631,43371.0,43370.0,2.97623]
[1642262781631,0.00078631,43371.0,43370.0,3.07623]
[1642262782231,8.76e-06,43371.0,43370.0,3.07623]
[1642262782434,1.21059877,43392.0,43370.0,3.12253]
[1642262782435,0.00071756,43373.0,43370.0,3.12253]
[1642262782631,0.00071756,43373.0,43372.0,3.0326]
[1642262782831,0.00071756,43373.0,43372.0,4.30012429]
[1642262783031,0.00071756,43373.0,43372.0,4.40012429]
[1642262783432,0.31657108,43386.0,43382.0,0.64375913]
[1642262783687,0.31657108,43386.0,43382.0,0.34355295]
[1642262783886,0.00024066,43385.0,43382.0,0.34355295]
[1642262784285,0.00022347,43384.0,43382.0,0.34355295]
[1642262784485,0.00022347,43384.0,43380.0,0.00125945]
[1642262784686,0.00020628,43383.0,43376.0,0.0463]
[1642262784887,0.00020628,43383.0,43374.0,0.0012402]
[1642262785086,0.00018909,43382.0,43374.0,0.0012402]
[1642262785387,0.0001719,43381.0,43375.0,0.374978]
[1642262785586,0.414257,43381.0,43375.0,0.374978]
[1642262785793,0.29790518,43376.0,43369.0,0.3071]
[1642262786091,6.876e-05,43375.0,43370.0,0.374978]
[1642262786288,6.876e-05,43375.0,43359.0,0.00122454]
[1642262786489,6.876e-05,43375.0,43360.0,0.374978]
[1642262786685,6.876e-05,43375.0,43360.0,0.37516709]
[1642262786886,0.28146687,43370.0,43365.0,0.30561287]
[1642262787086,0.28146687,43370.0,43366.0,0.374978]
[1642262787328,0.28146687,43370.0,43366.0,0.37506395]
[1642262787529,0.00071751,43371.0,43367.0,6.876e-05]
[1642262787729,0.00071751,43371.0,43368.0,0.374978]
[1642262788137,0.00071751,43371.0,43367.0,6.876e-05]
[1642262788138,0.04701751,43371.0,43367.0,6.876e-05]
[1642262788337,0.0463,43371.0,43367.0,6.876e-05]
[1642262788535,0.0463,43371.0,43360.0,0.00018909]
[1642262788732,0.28904728,43370.0,43360.0,0.00018909]
[1642262788937,0.32743967,43364.0,43360.0,0.00018909]
[1642262789134,0.57300141,43364.0,43361.0,0.374978]
[1642262789334,0.57300141,43364.0,43359.0,0.27133521]
[1642262789335,0.32743967,43364.0,43359.0,0.27133521]
[1642262789535,0.32743967,43364.0,43362.0,0.00015471]
[1642262789736,0.32743967,43364.0,43359.0,0.27133521]
[1642262789737,0.32743967,43364.0,43360.0,0.00018909]
[1642262790537,0.33121068,43363.0,43360.0,0.00018909]
[1642262790941,0.25611683,43362.0,43360.0,0.00018909]
[1642262791383,0.25611683,43362.0,43357.0,0.00024066]
[1642262791583,0.32743967,43364.0,43357.0,0.00024066]
[1642262792584,0.66455422,43364.0,43360.0,0.3228728]
[1642262792784,0.30836389,43370.0,43360.0,0.3228728]
[1642262792987,0.30836389,43370.0,43361.0,0.0001719]
[1642262793186,0.30836389,43370.0,43362.0,0.324978]
[1642262793187,0.00126622,43370.0,43362.0,0.324978]
[1642262793386,0.04701744,43371.0,43362.0,0.324978]
[1642262793590,0.25952706,43370.0,43363.0,0.00013752]
[1642262793785,0.04701744,43371.0,43369.0,0.29102613]
[1642262794287,0.0463,43371.0,43369.0,0.29102613]
[1642262794485,0.0463,43371.0,43363.0,0.00013752]
[1642262794833,0.0463,43371.0,43365.0,0.38214374]
[1642262795037,0.00071755,43372.0,43365.0,0.38214374]
[1642262795234,0.00071755,43372.0,43366.0,8.595e-05]
[1642262795435,0.24748648,43374.0,43366.0,8.595e-05]
[1642262795436,0.24748648,43374.0,43370.0,0.25389115]
[1642262795635,6.876e-05,43375.0,43370.0,0.25389115]
[1642262795636,0.00071755,43371.0,43370.0,0.25389115]
[1642262795835,0.00071755,43371.0,43370.0,0.62880515]
[1642262796436,0.00071755,43371.0,43370.0,3.07880515]
[1642262796737,6.876e-05,43375.0,43370.0,3.11880515]
[1642262796937,0.00071756,43373.0,43371.0,0.432549]
[1642262797938,6.876e-05,43375.0,43371.0,0.432549]
[1642262798137,0.00071757,43374.0,43371.0,0.432549]
[1642262798582,0.00071757,43374.0,43371.0,0.374914]
[1642262799179,6.876e-05,43375.0,43371.0,0.374914]
[1642262799382,0.00078634,43375.0,43371.0,0.374914]
[1642262800280,6.876e-05,43375.0,43371.0,0.374914]
[1642262800481,0.00078634,43375.0,43371.0,0.374914]
[1642262801083,0.00078634,43375.0,43371.0,0.532549]
[1642262801287,0.00078634,43375.0,43374.0,0.05129677]
[1642262801484,6.876e-05,43375.0,43374.0,2.97621077]
[1642262801681,0.001,43396.0,43375.0,2.924914]
[1642262801682,0.00222275,43394.0,43375.0,2.924914]
[1642262801880,0.00222275,43394.0,43380.0,0.00128364]
[1642262802083,0.00018909,43386.0,43382.0,0.3001583]